bitfinex/quotes_BTCUSD_20241111
["timestamp","ask_amount","ask_price","bid_price","bid_amount"]
[1731318187305,0.12594221,81534.0,81530.0,0.122653]
[1731318188228,0.12594221,81534.0,81529.0,0.001686]
[1731318188598,0.12594221,81534.0,81533.0,0.122649]
[1731318190746,0.12594221,81534.0,81529.0,0.001686]
[1731318190948,0.12265,81533.0,81529.0,0.001686]
[1731318191130,0.0813,81535.0,81529.0,0.001686]
[1731318191131,0.24859321,81532.0,81529.0,0.001686]
[1731318191478,0.12594221,81532.0,81529.0,0.001686]
[1731318191921,0.12594221,81532.0,81531.0,0.124338]
[1731318196934,0.079,81543.0,81542.0,0.122636]
[1731318197134,0.12594221,81543.0,81542.0,0.122636]
[1731318198429,0.0831,81549.0,81548.0,0.122627]
[1731318198637,0.12594221,81549.0,81548.0,0.122627]
[1731318199521,0.245278,81540.0,81531.0,0.001686]
[1731318199825,0.122647,81535.0,81531.0,0.001686]
[1731318200016,0.24529,81536.0,81531.0,0.001686]
[1731318200017,0.12594221,81534.0,81531.0,0.001686]
[1731318200244,0.12594221,81534.0,81532.0,0.122651]
[1731318200560,0.12594221,81534.0,81533.0,0.122649]
[1731318200783,0.12594221,81534.0,81531.0,0.24699]
[1731318200784,0.12594221,81534.0,81532.0,0.122649]
[1731318200990,0.12594221,81534.0,81533.0,0.122649]
[1731318202573,0.12594221,81534.0,81531.0,0.001686]
[1731318205200,0.12594221,81534.0,81533.0,0.122649]
[1731318207371,0.12594221,81534.0,81531.0,0.369643]
[1731318207747,0.12594221,81534.0,81531.0,0.001686]
[1731318207748,0.24859121,81534.0,81531.0,0.001686]
[1731318208198,0.12594221,81534.0,81532.0,0.12265]
[1731318208556,0.24859121,81534.0,81531.0,0.001686]
[1731318208979,0.12594221,81534.0,81533.0,0.122649]
[1731318209179,0.12594221,81534.0,81531.0,0.001686]
[1731318209384,0.12594221,81534.0,81532.0,0.122651]
[1731318209817,0.12594221,81534.0,81531.0,0.001686]
[1731318209818,0.228251,81532.0,81531.0,0.001686]
[1731318210023,0.35619321,81532.0,81531.0,0.001686]
[1731318210240,1.97265281,81532.0,81531.0,0.001686]
[1731318210777,1.96119321,81532.0,81531.0,0.001686]
[1731318211238,2.00158951,81532.0,81531.0,0.001686]
[1731318212223,2.03815776,81532.0,81531.0,0.001686]
[1731318212458,2.00158951,81532.0,81531.0,0.001686]
[1731318212660,0.307354,81530.0,81529.0,0.001686]
[1731318212858,0.492881,81530.0,81529.0,0.001686]
[1731318213059,0.490881,81530.0,81529.0,0.001686]
[1731318213483,0.51117319,81530.0,81529.0,0.001686]
[1731318213643,2.01117319,81530.0,81529.0,0.001686]
[1731318214448,2.00917319,81530.0,81529.0,0.001686]
[1731318214914,0.50917319,81530.0,81529.0,0.001686]
[1731318215475,0.45429621,81530.0,81529.0,0.001686]
[1731318217619,0.49089479,81530.0,81529.0,0.001686]
[1731318217847,0.57661358,81530.0,81529.0,0.001686]
[1731318218058,0.57661358,81530.0,81479.0,0.03642906]
[1731318218059,0.005,81477.0,81462.0,0.07285813]
[1731318218302,0.005,81477.0,81447.0,0.1112872]
[1731318218303,0.005,81477.0,81476.0,0.73592994]
[1731318218479,1.505,81477.0,81476.0,0.73592994]
[1731318218755,0.005,81469.0,81467.0,0.73592994]
[1731318219080,0.005,81469.0,81468.0,0.117747]
[1731318219285,0.13094221,81469.0,81468.0,0.117747]
[1731318222647,1.5,81477.0,81456.0,0.00736954]
[1731318222648,1.5,81477.0,81476.0,0.122735]
[1731318222827,0.005,81480.0,81479.0,0.122731]
[1731318223040,0.13094221,81480.0,81479.0,0.122731]
[1731318223255,0.13094221,81480.0,81459.0,0.17469207]
[1731318223449,0.13094221,81480.0,81479.0,0.122731]
[1731318223650,0.13094221,81480.0,81470.0,0.18409539]
[1731318223868,0.12594221,81479.0,81466.0,0.17108007]
[1731318224041,0.005,81474.0,81469.0,0.18409539]
[1731318224248,0.005,81478.0,81477.0,0.122734]
[1731318224454,0.13094221,81478.0,81477.0,0.122734]
[1731318224659,0.005,81485.0,81473.0,0.16969207]
[1731318225015,0.18409539,81496.0,81495.0,0.122706]
[1731318225213,0.005,81476.0,81475.0,0.122737]
[1731318225360,0.13094221,81476.0,81475.0,0.122737]
[1731318228294,0.005,81467.0,81466.0,0.124138]
[1731318228513,0.13094221,81467.0,81466.0,0.124138]
[1731318228719,0.12594221,81467.0,81466.0,0.124138]
[1731318228921,1.505,81473.0,81468.0,0.245495]
[1731318229127,0.005,81479.0,81468.0,0.25537715]
[1731318229329,0.005,81480.0,81479.0,0.122731]
[1731318229454,0.13094221,81480.0,81479.0,0.122731]
[1731318229670,0.13094221,81480.0,81476.0,0.122734]
[1731318229897,0.12594221,81479.0,81478.0,0.122732]
[1731318230630,0.005,81469.0,81468.0,0.122747]
[1731318230783,0.13094221,81469.0,81468.0,0.122747]
[1731318231320,0.005,81470.0,81466.0,0.246886]
[1731318231525,0.13094221,81470.0,81469.0,0.122746]
[1731318233211,0.005,81475.0,81474.0,0.122738]
[1731318233425,0.13094221,81475.0,81474.0,0.122738]
[1731318233627,0.0783,81479.0,81472.0,0.24548]
[1731318233628,0.005,81479.0,81477.0,0.122734]
[1731318233874,0.12594221,81478.0,81477.0,0.122734]
[1731318234089,0.12594221,81478.0,81466.0,0.25676515]
[1731318234090,0.127749,81467.0,81466.0,0.001388]
[1731318234299,0.13094221,81467.0,81466.0,0.001388]
[1731318234719,1.63094221,81467.0,81466.0,0.001388]
[1731318234923,1.77669121,81467.0,81466.0,0.001388]
[1731318235297,0.27669121,81467.0,81466.0,0.001388]
[1731318236715,0.39544221,81467.0,81466.0,0.001388]
[1731318236888,0.51819121,81467.0,81466.0,0.001388]
[1731318237351,2.01819121,81467.0,81466.0,0.001388]
[1731318237915,2.01819121,81467.0,81452.0,0.18409539]
[1731318237916,0.005,81453.0,81452.0,0.18409539]
[1731318238113,0.15394221,81453.0,81452.0,0.18409539]
[1731318238327,0.15394221,81453.0,81449.0,0.001388]
[1731318238546,0.12594221,81452.0,81449.0,0.001388]
[1731318239097,0.15394221,81450.0,81449.0,0.001388]
[1731318239305,0.27671621,81450.0,81449.0,0.001388]
[1731318240258,1.27797411,81450.0,81449.0,0.001388]
[1731318240438,1.38297411,81450.0,81449.0,0.001388]
[1731318240637,1.11291621,81450.0,81449.0,0.001388]
[1731318240895,2.61791621,81450.0,81449.0,0.001388]
[1731318241455,2.61291621,81450.0,81449.0,0.001388]
[1731318241680,2.61791621,81450.0,81449.0,0.001388]
[1731318243142,2.86791621,81450.0,81449.0,0.001388]
[1731318243337,0.005,81423.0,81422.0,0.18409539]
[1731318243588,0.005,81423.0,81422.0,0.30691139]
[1731318243589,0.13094221,81423.0,81422.0,0.30691139]
[1731318243762,0.13094221,81423.0,81422.0,0.122816]
[1731318244555,0.12594221,81423.0,81422.0,0.122816]
[1731318244758,0.005,81429.0,81428.0,0.122807]
[1731318244992,0.13094221,81429.0,81428.0,0.122807]
[1731318245763,0.005,81436.0,81425.0,0.25537715]
[1731318245974,0.005,81454.0,81453.0,0.12277]
[1731318246179,0.18409539,81460.0,81459.0,0.122761]
[1731318246385,0.18409539,81460.0,81433.0,0.1]
[1731318246386,0.005,81452.0,81433.0,0.005]
[1731318246607,0.005,81452.0,81415.0,0.0793]
[1731318246608,0.005,81460.0,81459.0,0.122761]
[1731318246849,0.0826,81476.0,81461.0,0.122758]
[1731318246850,0.005,81462.0,81461.0,0.122758]
[1731318247261,0.13094221,81462.0,81461.0,0.122758]
[1731318247673,0.001688,81466.0,81461.0,0.122758]
[1731318247674,0.001688,81466.0,81465.0,0.122752]
[1731318247879,0.001688,81466.0,81465.0,0.12520672]
[1731318248091,0.001688,81466.0,81465.0,0.122752]
[1731318248500,0.13263021,81466.0,81465.0,0.122752]
[1731318249128,0.13263021,81466.0,81450.0,0.25537715]
[1731318249129,0.005,81441.0,81440.0,0.122789]
[1731318249334,0.13094221,81441.0,81440.0,0.122789]
[1731318250381,0.005,81453.0,81452.0,0.122771]
[1731318250597,0.18409539,81451.0,81450.0,0.122774]
[1731318250812,0.18409539,81464.0,81450.0,0.122774]
[1731318250813,0.005,81458.0,81450.0,0.245547]
[1731318251042,0.18409539,81464.0,81441.0,0.005]
[1731318251043,0.18409539,81464.0,81463.0,0.122755]
[1731318251268,0.005,81459.0,81458.0,0.122762]
[1731318251483,0.005,81459.0,81443.0,0.122785]
[1731318251484,0.13094221,81459.0,81443.0,0.122785]
[1731318251687,0.005,81457.0,81456.0,0.122764]
[1731318251894,0.13094221,81457.0,81456.0,0.122764]
[1731318252738,0.006688,81466.0,81465.0,0.122752]
[1731318252941,0.001688,81466.0,81465.0,0.37812915]
[1731318253357,0.001688,81466.0,81465.0,0.38312915]
[1731318253981,0.001688,81466.0,81465.0,0.48512915]
[1731318254385,0.001688,81480.0,81479.0,0.122731]
[1731318254602,0.001688,81480.0,81479.0,0.38310815]
[1731318255226,0.18409539,81495.0,81494.0,0.122708]
[1731318255433,0.005,81483.0,81482.0,0.122726]
[1731318258187,0.005,81483.0,81465.0,0.005]
[1731318258188,0.005,81451.0,81442.0,0.18409539]
[1731318258401,0.2973,81482.0,81451.0,0.18909539]
[1731318258402,0.005,81458.0,81451.0,0.18909539]
[1731318258612,0.7823,81481.0,81457.0,0.18409539]
[1731318258613,0.005,81464.0,81457.0,0.18409539]
[1731318258816,0.005,81478.0,81464.0,0.005]
[1731318259024,0.18409539,81480.0,81479.0,0.122731]
[1731318259025,0.18909539,81480.0,81479.0,0.122731]
[1731318259453,0.005,81480.0,81479.0,0.122731]
[1731318259677,0.005,81482.0,81481.0,0.122727]
[1731318259879,0.13094221,81482.0,81481.0,0.122727]
[1731318260365,0.001688,81483.0,81479.0,0.24546]
[1731318260366,0.001688,81483.0,81480.0,0.18409539]
[1731318260582,0.05459843,81517.0,81480.0,0.18409539]
[1731318260583,0.18409539,81502.0,81501.0,0.122697]
[1731318260786,0.18409539,81502.0,81501.0,0.37807415]
[1731318260987,0.18409539,81513.0,81512.0,0.122681]
[1731318261143,0.3100376,81513.0,81512.0,0.122681]
[1731318261337,0.12594221,81513.0,81512.0,0.122681]
[1731318262491,0.14894221,81513.0,81512.0,0.122681]
[1731318263950,0.069,81525.0,81520.0,0.122669]
[1731318264165,0.005,81526.0,81525.0,0.122661]
[1731318264358,0.18409539,81531.0,81515.0,0.25537715]
[1731318264560,0.105,81531.0,81530.0,0.122654]
[1731318264767,1.6,81531.0,81530.0,0.122654]
[1731318265180,1.605,81531.0,81530.0,0.122654]
[1731318265391,0.005,81530.0,81525.0,0.245321]
[1731318265604,0.12594221,81529.0,81525.0,0.245321]
[1731318265842,0.12594221,81529.0,81527.0,0.122657]
[1731318266038,0.023,81528.0,81527.0,0.122657]
[1731318266242,0.12594221,81528.0,81527.0,0.122657]
[1731318266393,0.14894221,81528.0,81527.0,0.122657]
[1731318268799,1.64894221,81528.0,81527.0,0.122657]
[1731318270524,0.122667,81522.0,81515.0,0.122675]
[1731318270724,0.023,81520.0,81519.0,0.12267]
[1731318270926,0.14894221,81520.0,81519.0,0.12267]
[1731318271338,0.14894221,81520.0,81514.0,0.122676]
[1731318271541,0.005,81526.0,81512.0,0.245359]
[1731318271542,0.023,81518.0,81512.0,0.245359]
[1731318271743,1.826704,81528.0,81498.0,0.25537715]
[1731318271744,0.14894221,81517.0,81498.0,0.25537715]
[1731318271990,0.023,81516.0,81508.0,0.18409539]
[1731318272143,0.12594221,81515.0,81509.0,0.245371]
[1731318272729,0.12594221,81515.0,81499.0,0.42949639]
[1731318272730,0.023,81512.0,81499.0,0.18409539]
[1731318273038,0.023,81514.0,81503.0,0.122693]
[1731318273039,0.023,81510.0,81503.0,0.122693]
[1731318273243,0.023,81508.0,81501.0,0.245395]
[1731318273454,0.023,81506.0,81504.0,0.122692]
[1731318273633,1.62594221,81505.0,81504.0,0.122692]
[1731318273834,1.62594221,81505.0,81498.0,0.245404]
[1731318274036,1.62594221,81505.0,81501.0,0.122697]
[1731318274242,0.145693,81504.0,81498.0,0.122701]
[1731318274457,0.145696,81502.0,81495.0,0.122705]
[1731318274670,0.023,81497.0,81491.0,0.122711]
[1731318274869,0.023,81495.0,81491.0,0.245425]
[1731318275200,0.023,81495.0,81493.0,0.122709]
[1731318275201,0.14894221,81494.0,81493.0,0.122709]
[1731318276914,0.12594221,81494.0,81493.0,0.122709]
[1731318283673,0.12268562,81494.0,81493.0,0.122709]
[1731318287776,0.12268562,81494.0,81493.0,0.12542974]
[1731318287961,0.12268562,81494.0,81493.0,0.122709]
[1731318288162,0.12268562,81494.0,81493.0,0.12542973]
[1731318288479,0.12268562,81494.0,81493.0,0.122709]
[1731318291981,0.12268562,81494.0,81493.0,0.12436196]
[1731318292176,0.12268562,81494.0,81493.0,0.122709]
[1731318295542,0.0759,81493.0,81490.0,0.122714]
[1731318295737,0.12594221,81492.0,81485.0,0.245443]
[1731318296065,0.122713,81491.0,81485.0,0.18409539]
[1731318296267,0.12594221,81490.0,81486.0,0.12272]
[1731318296474,0.12594221,81490.0,81485.0,0.18409539]
[1731318296604,0.12594221,81490.0,81488.0,0.122716]
[1731318298334,0.12594221,81490.0,81486.0,0.12272]
[1731318298541,0.12594221,81490.0,81488.0,0.122716]
[1731318298853,0.12594221,81490.0,81484.0,0.245446]
[1731318299068,0.12594221,81490.0,81488.0,0.122716]
[1731318299434,1.5,81489.0,81488.0,0.122716]
[1731318299638,1.62594221,81489.0,81488.0,0.122716]
[1731318299791,0.12594221,81489.0,81488.0,0.122716]
[1731318305050,0.24865821,81489.0,81484.0,0.122722]
[1731318305264,0.12594221,81488.0,81485.0,0.122721]
[1731318305487,0.12594221,81488.0,81487.0,0.122718]
[1731318311637,0.12594221,81488.0,81485.0,0.246286]
[1731318311638,0.12594221,81488.0,81485.0,0.000844]
[1731318311876,0.14572,81486.0,81485.0,0.000844]
[1731318311998,0.27166221,81486.0,81485.0,0.000844]
[1731318312197,1.77666221,81486.0,81485.0,0.000844]
[1731318312439,1.85396221,81486.0,81485.0,0.000844]
[1731318312642,2.00686221,81486.0,81485.0,0.000844]
[1731318312847,2.00686221,81486.0,81480.0,0.000844]
[1731318312848,0.135,81481.0,81480.0,0.000844]
[1731318313124,0.76636791,81481.0,81480.0,0.000844]
[1731318313452,0.63113699,81481.0,81480.0,0.000844]
[1731318313627,2.26636232,81481.0,81480.0,0.000844]
[1731318313858,3.07460453,81481.0,81480.0,0.000844]
[1731318314032,2.77849454,81481.0,81480.0,0.000844]
[1731318314406,2.85173467,81481.0,81480.0,0.000844]
[1731318314607,2.84473467,81481.0,81480.0,0.000844]
[1731318314811,2.84973467,81481.0,81480.0,0.000844]
[1731318315017,2.64876754,81481.0,81480.0,0.000844]
[1731318315215,2.69121439,81481.0,81480.0,0.000844]
[1731318315537,2.51354221,81481.0,81480.0,0.000844]
[1731318315766,2.63626921,81481.0,81480.0,0.000844]
[1731318316573,2.76421142,81481.0,81480.0,0.000844]
[1731318316718,2.97272263,81481.0,81480.0,0.000844]
[1731318317115,2.76421142,81481.0,81480.0,0.000844]
[1731318317314,2.81917827,81481.0,81480.0,0.000844]
[1731318317517,2.81717785,81481.0,81480.0,0.000844]
[1731318317731,2.76221142,81481.0,81480.0,0.000844]
[1731318318146,2.81717802,81481.0,81480.0,0.000844]
[1731318318378,2.76221142,81481.0,81480.0,0.000844]
[1731318318584,2.97071838,81481.0,81480.0,0.000844]
[1731318318858,1.95396921,81481.0,81480.0,0.000844]
[1731318319067,1.99061159,81481.0,81480.0,0.000844]
[1731318319289,1.95396921,81481.0,81480.0,0.000844]
[1731318319920,2.08923171,81481.0,81480.0,0.000844]
[1731318320119,2.16247184,81481.0,81480.0,0.000844]
[1731318320524,2.21717808,81481.0,81480.0,0.000844]
[1731318321420,2.22217808,81481.0,81480.0,0.000844]
[1731318321626,2.31378724,81481.0,81480.0,0.000844]
[1731318321830,2.31178724,81481.0,81480.0,0.000844]
[1731318322446,2.22017808,81481.0,81480.0,0.000844]
[1731318322658,2.22011493,81481.0,81480.0,0.000844]
[1731318322891,2.31168133,81481.0,81480.0,0.000844]
[1731318323136,2.18573912,81481.0,81480.0,0.000844]
[1731318323350,2.09417272,81481.0,81480.0,0.000844]
[1731318324485,2.16740503,81481.0,81480.0,0.000844]
[1731318325339,2.16736306,81481.0,81480.0,0.000844]
[1731318325786,1.95396921,81481.0,81480.0,0.000844]
[1731318328241,2.00887985,81481.0,81480.0,0.000844]
[1731318329258,2.01087985,81481.0,81480.0,0.000844]
[1731318329470,1.95596921,81481.0,81480.0,0.000844]
[1731318329672,1.95396921,81481.0,81480.0,0.000844]
[1731318330057,2.00887985,81481.0,81480.0,0.000844]
[1731318330440,1.95396921,81481.0,81480.0,0.000844]
[1731318332110,1.96541516,81481.0,81480.0,0.000844]
[1731318332936,1.96571516,81481.0,81480.0,0.000844]
[1731318334086,1.96771516,81481.0,81480.0,0.000844]
[1731318334489,1.96571516,81481.0,81480.0,0.000844]
[1731318335623,0.127743,81471.0,81470.0,0.18409539]
[1731318335853,0.27668521,81471.0,81470.0,0.18409539]
[1731318336077,0.122753,81464.0,81459.0,0.30685639]
[1731318336288,0.245531,81456.0,81451.0,0.18409539]
[1731318336445,0.122768,81455.0,81451.0,0.18409539]
[1731318336661,0.023,81461.0,81452.0,0.122771]
[1731318336838,0.122764,81457.0,81447.0,0.00603881]
[1731318337040,0.122772,81452.0,81447.0,0.12881681]
[1731318337243,0.245525,81458.0,81447.0,0.12881681]
[1731318337467,0.023,81461.0,81444.0,0.122782]
[1731318337630,0.023,81459.0,81442.0,0.245572]
[1731318337833,0.122771,81452.0,81446.0,0.122779]
[1731318338055,0.122772,81452.0,81446.0,0.122779]
[1731318338348,0.122769,81454.0,81447.0,0.122777]
[1731318338555,0.005,81462.0,81446.0,0.25137606]
[1731318338556,0.268516,81461.0,81446.0,0.25137606]
[1731318338756,0.268516,81461.0,81451.0,0.122772]
[1731318338757,0.122766,81456.0,81451.0,0.122772]
[1731318338955,0.12594221,81455.0,81451.0,0.122772]
[1731318339175,0.12594221,81455.0,81450.0,0.122774]
[1731318339514,0.122769,81454.0,81449.0,0.000844]
[1731318339649,0.122774,81451.0,81449.0,0.000844]
[1731318339857,0.268516,81461.0,81449.0,0.000844]
[1731318339858,0.12594221,81450.0,81449.0,0.000844]
[1731318340108,0.12594221,81450.0,81449.0,0.12362]
[1731318345905,0.24901621,81450.0,81449.0,0.000844]
[1731318346281,0.34258335,81450.0,81449.0,0.000844]
[1731318346483,0.3540598,81450.0,81449.0,0.000844]
[1731318346886,0.26049266,81450.0,81449.0,0.000844]
[1731318347304,0.28849266,81450.0,81449.0,0.000844]
[1731318347927,1.78849266,81450.0,81449.0,0.000844]
[1731318348970,1.79453506,81450.0,81449.0,0.000844]
[1731318350337,1.66071866,81450.0,81449.0,0.000844]
[1731318350571,0.12624221,81450.0,81449.0,0.000844]
[1731318351032,0.12624221,81450.0,81449.0,0.12362]
[1731318353408,0.12624221,81450.0,81449.0,0.000844]
[1731318353833,0.12624221,81450.0,81449.0,0.12362]
[1731318354040,0.12624221,81450.0,81449.0,0.000844]
[1731318354458,0.12624221,81450.0,81449.0,0.12362]
[1731318354846,0.12624221,81450.0,81449.0,0.000844]
[1731318355280,0.12624221,81450.0,81449.0,0.12362]
[1731318355761,0.12624221,81450.0,81449.0,0.000844]
[1731318355954,0.12624221,81450.0,81449.0,0.12362]
[1731318356672,0.12624221,81450.0,81449.0,0.000844]
[1731318357128,0.12624221,81450.0,81449.0,0.12362]
[1731318357515,1.62624221,81450.0,81449.0,0.12362]
[1731318358751,0.12624221,81450.0,81449.0,0.12362]
[1731318363764,1.62624221,81450.0,81449.0,0.12362]
[1731318363969,1.62624221,81450.0,81449.0,0.000844]
[1731318364373,1.62624221,81450.0,81449.0,0.12362]
[1731318364577,1.64920152,81450.0,81449.0,0.12362]
[1731318366486,1.62624221,81450.0,81449.0,0.000844]
[1731318366895,1.63772614,81450.0,81449.0,0.000844]
[1731318367070,1.62624221,81450.0,81449.0,0.12362]
[1731318367271,1.63772649,81450.0,81449.0,0.12362]
[1731318368300,0.0003,81450.0,81449.0,0.12362]
[1731318368638,0.0003,81450.0,81449.0,0.16972]
[1731318370452,0.0003,81450.0,81449.0,0.17033942]
[1731318370647,0.0003,81450.0,81449.0,0.17625974]
[1731318371022,0.0003,81450.0,81449.0,0.18125974]
[1731318371222,0.0003,81450.0,81449.0,0.28371509]
[1731318371426,0.18409539,81462.0,81461.0,0.122758]
[1731318371700,0.3100376,81462.0,81461.0,0.12358337]
[1731318371850,0.3100376,81462.0,81461.0,0.122758]
[1731318371851,0.12594221,81462.0,81461.0,0.122758]
[1731318375985,0.12594221,81462.0,81449.0,0.100844]
[1731318376184,0.03670176,81470.0,81449.0,0.100844]
[1731318376185,0.20554221,81461.0,81450.0,0.18409539]
[1731318376388,0.20554221,81461.0,81452.0,0.122771]
[1731318376593,1.5,81460.0,81455.0,0.122766]
[1731318376791,0.12594221,81459.0,81449.0,0.000844]
[1731318376993,0.12594221,81459.0,81458.0,0.122762]
[1731318379455,0.03670273,81466.0,81459.0,0.245521]
[1731318379649,0.12594221,81465.0,81464.0,0.29292078]
[1731318380236,0.22278412,81481.0,81479.0,0.122731]
[1731318380237,0.03838873,81480.0,81479.0,0.122731]
[1731318380436,0.12762821,81480.0,81479.0,0.122731]
[1731318380638,0.001686,81480.0,81479.0,0.122731]
[1731318381103,0.001686,81480.0,81479.0,0.12518534]
[1731318381306,0.001686,81480.0,81479.0,0.122731]
[1731318381708,0.001686,81480.0,81479.0,0.227731]
[1731318383453,0.001686,81480.0,81479.0,0.23353075]
[1731318384024,0.001686,81480.0,81479.0,0.4061527]
[1731318384198,0.001686,81480.0,81479.0,0.40069853]
[1731318384393,0.001686,81483.0,81482.0,0.39789378]
[1731318384748,0.001686,81483.0,81482.0,0.227726]
[1731318385065,0.001686,81483.0,81482.0,0.229726]
[1731318385266,0.001688,81494.0,81493.0,0.122709]
[1731318385502,0.001688,81494.0,81493.0,0.29287678]
[1731318388405,0.001688,81494.0,81493.0,0.48457678]
[1731318388626,0.18409539,81518.0,81517.0,0.122673]
[1731318388838,0.18409539,81518.0,81517.0,0.29284078]
[1731318389042,0.001688,81532.0,81519.0,0.12267]
[1731318389250,0.001688,81532.0,81519.0,0.22267]
[1731318392992,0.001688,81532.0,81519.0,0.12267]
[1731318395466,0.001688,81532.0,81519.0,0.22267]
[1731318395656,0.001688,81532.0,81519.0,0.22767]
[1731318402227,0.001688,81532.0,81519.0,0.22267]
[1731318402400,0.001688,81532.0,81519.0,0.22767]
[1731318403807,0.12763021,81520.0,81519.0,0.12267]
[1731318404016,0.21003021,81520.0,81519.0,0.12267]
[1731318404624,0.001688,81520.0,81519.0,0.29283778]
[1731318406135,0.001688,81520.0,81519.0,0.12267]
[1731318415767,0.001688,81520.0,81519.0,0.29283778]
[1731318417746,0.001688,81520.0,81519.0,0.39283778]
[1731318418186,0.001688,81520.0,81519.0,0.39783778]
[1731318426859,0.001688,81520.0,81519.0,0.3977281]
[1731318428621,0.001688,81532.0,81531.0,0.222652]
[1731318432003,0.001688,81532.0,81531.0,0.23010458]
[1731318432200,0.001688,81532.0,81531.0,0.227652]
[1731318432662,0.001688,81532.0,81531.0,0.23345155]
[1731318433114,0.001688,81532.0,81531.0,0.24090401]
[1731318436726,0.001688,81532.0,81531.0,0.23845155]
[1731318437819,0.001688,81532.0,81531.0,0.24090399]
[1731318438044,0.001688,81532.0,81531.0,0.24290399]
[1731318438502,0.000695,81548.0,81546.0,0.17016778]
[1731318438705,0.000695,81548.0,81547.0,0.22508015]
[1731318438844,0.000695,81548.0,81547.0,0.222628]
[1731318439950,0.000843,81554.0,81553.0,0.122619]
[1731318440179,0.000843,81554.0,81553.0,0.3952387]
[1731318440385,0.000843,81554.0,81553.0,0.39278678]
[1731318442449,0.000695,81558.0,81557.0,0.122613]
[1731318442671,0.000695,81558.0,81557.0,0.12506489]
[1731318443124,0.000695,81558.0,81557.0,0.122613]
[1731318444655,0.000695,81558.0,81557.0,0.222613]
[1731318444870,0.000695,81558.0,81557.0,0.23006489]
[1731318445083,0.000695,81558.0,81557.0,0.227613]
[1731318445773,1.95644967,81566.0,81563.0,0.005]
[1731318445939,1.81494582,81566.0,81565.0,0.44533556]
[1731318446374,1.81494582,81566.0,81565.0,0.27516778]
[1731318446719,1.81494582,81566.0,81565.0,0.28016778]
[1731318446914,1.76100436,81566.0,81565.0,0.43991867]
[1731318447115,1.74110574,81566.0,81565.0,0.43991867]
[1731318447316,1.73736004,81566.0,81565.0,0.43991867]
[1731318447534,1.69874778,81566.0,81565.0,0.43991867]
[1731318447942,1.66201675,81566.0,81565.0,0.43991867]
[1731318448311,1.61701675,81566.0,81565.0,0.43991867]
[1731318448532,1.61701675,81566.0,81565.0,0.44593388]
[1731318448746,1.27589805,81566.0,81565.0,0.73870266]
[1731318448950,1.10601512,81566.0,81565.0,0.73670266]
[1731318449533,1.10601512,81566.0,81565.0,0.56653488]
[1731318449737,1.0411377,81566.0,81565.0,0.56653488]
[1731318450319,0.95587734,81566.0,81565.0,0.56653488]
[1731318450521,0.95587734,81566.0,81565.0,0.5347262]
[1731318450729,0.93135734,81566.0,81565.0,0.5347262]
[1731318450929,0.88231734,81566.0,81565.0,0.5347262]
[1731318451412,0.88231734,81566.0,81565.0,0.70689398]
[1731318451413,0.76844734,81566.0,81565.0,0.70689398]
[1731318451693,0.74392734,81566.0,81565.0,0.73870266]
[1731318451898,0.66986734,81566.0,81565.0,0.73870266]
[1731318452116,0.62082734,81566.0,81565.0,0.70489398]
[1731318452336,0.62082734,81566.0,81565.0,0.40878399]
[1731318452541,0.62082734,81566.0,81565.0,0.40378399]
[1731318452760,0.62082734,81566.0,81565.0,0.40878399]
[1731318452945,0.57178734,81566.0,81565.0,0.40878399]
[1731318453489,0.39394598,81566.0,81565.0,0.57895177]
[1731318453678,0.39394598,81566.0,81565.0,0.41078399]
[1731318453679,0.32038598,81566.0,81565.0,0.41078399]
[1731318453892,0.051787,81577.0,81569.0,0.01]
[1731318454092,0.051787,81577.0,81576.0,0.39275278]
[1731318454350,0.028727,81577.0,81576.0,0.222585]
[1731318456173,0.028727,81577.0,81576.0,0.22843032]
[1731318458367,0.02409237,81577.0,81576.0,0.22843032]
[1731318458943,0.045,81585.0,81584.0,0.122573]
[1731318459146,0.17094221,81585.0,81584.0,0.222573]
[1731318462019,0.24784221,81585.0,81584.0,0.222573]
[1731318462920,0.04871726,81592.0,81591.0,0.222562]
[1731318463120,0.17465947,81592.0,81591.0,0.222562]
[1731318463549,0.22265947,81592.0,81591.0,0.217562]
[1731318465204,0.22265947,81592.0,81591.0,0.22361023]
[1731318466051,0.0002,81601.0,81600.0,0.122549]
[1731318466276,0.12614221,81601.0,81600.0,0.122549]
[1731318467759,0.12614221,81601.0,81600.0,0.12856542]
[1731318470933,0.12698421,81601.0,81600.0,0.12856542]
[1731318472580,0.12698421,81601.0,81600.0,0.22856542]
[1731318472810,0.001042,81601.0,81600.0,0.22856542]
[1731318480401,0.03648328,81610.0,81602.0,0.245091]
[1731318480402,0.02433437,81610.0,81602.0,0.245091]
[1731318480615,0.17120822,81617.0,81612.0,0.1]
[1731318480616,0.07882043,81617.0,81612.0,0.1]
[1731318480790,0.07882043,81617.0,81616.0,0.122524]
[1731318481749,0.07882043,81617.0,81616.0,0.15408622]
[1731318482085,0.051,81619.0,81618.0,0.122521]
[1731318482288,0.17694221,81619.0,81618.0,0.15616656]
[1731318483723,0.051,81619.0,81618.0,0.15616656]
[1731318484913,0.05472493,81624.0,81623.0,0.122514]
[1731318485130,0.08576662,81638.0,81628.0,0.1]
[1731318485333,0.01280005,81638.0,81635.0,0.17016778]
[1731318485534,0.000695,81638.0,81637.0,0.122493]
[1731318485738,0.000694,81640.0,81639.0,0.12249]
[1731318485952,0.12663621,81640.0,81639.0,0.12249]
[1731318486550,0.000694,81640.0,81639.0,0.12249]
[1731318486883,1.5310004,81651.0,81647.0,0.1]
[1731318486884,1.5221134,81651.0,81647.0,0.1]
[1731318487016,1.5221134,81651.0,81640.0,0.244977]
[1731318487017,1.51903982,81651.0,81650.0,0.222473]
[1731318487301,0.01903982,81651.0,81650.0,0.222473]
[1731318487476,0.01738546,81651.0,81650.0,0.222473]
[1731318487967,0.14332767,81651.0,81650.0,0.222473]
[1731318488192,0.26632767,81651.0,81650.0,0.222473]
[1731318488994,0.21832767,81651.0,81650.0,0.222473]
[1731318489195,0.09238546,81651.0,81650.0,0.222473]